bitfinex/quotes_SOLUSD_20240708
["timestamp","ask_amount","ask_price","bid_price","bid_amount"]
[1720400103025,100.0,129.8,129.75,0.03333333]
[1720400103222,100.0,129.8,129.75,0.20333333]
[1720400103525,100.0,129.84,129.75,0.20333333]
[1720400103753,10.3507392,129.88,129.76,21.4425]
[1720400103754,100.0,129.86,129.76,21.4425]
[1720400103925,100.0,129.89,129.77,28.704]
[1720400104123,100.0,129.89,129.77,23.31]
[1720400104338,100.0,129.87,129.77,23.31]
[1720400104521,100.0,129.87,129.77,0.17]
[1720400104931,100.0,129.83,129.77,0.17]
[1720400105121,100.0,129.81,129.77,0.17]
[1720400105328,100.0,129.83,129.77,0.17]
[1720400105830,100.0,129.86,129.77,0.17]
[1720400106034,100.0,129.85,129.77,0.17]
[1720400106436,100.0,129.89,129.77,0.17]
[1720400106751,100.0,129.89,129.78,28.5337]
[1720400107058,100.0,129.89,129.79,0.17]
[1720400107950,100.0,129.87,129.79,0.17]
[1720400108452,11.59790217,129.93,129.79,0.17]
[1720400108453,100.0,129.89,129.79,0.17]
[1720400109024,100.0,129.92,129.8,34.6709]
[1720400109230,100.0,129.89,129.81,0.17]
[1720400109537,100.0,129.93,129.82,15.9879]
[1720400109939,100.0,129.91,129.83,0.17]
[1720400110232,100.0,129.88,129.82,15.9879]
[1720400110428,100.0,129.86,129.82,15.9879]
[1720400110661,100.0,129.84,129.82,15.9879]
[1720400110932,100.0,129.86,129.82,15.9879]
[1720400111438,100.0,129.88,129.82,15.9879]
[1720400112556,100.0,129.86,129.82,15.9879]
[1720400113289,100.0,129.87,129.82,15.9879]
[1720400113550,100.0,129.89,129.82,15.9879]
[1720400113744,100.0,129.89,129.83,0.17]
[1720400114147,15.88431697,129.97,129.83,0.17]
[1720400114148,100.0,129.94,129.83,0.17]
[1720400114455,100.0,129.93,129.83,0.17]
[1720400116058,25.28120511,129.97,129.83,0.17]
[1720400116059,100.0,129.91,129.83,0.17]
[1720400116269,100.0,129.91,129.84,6.5047]
[1720400116562,100.0,129.91,129.85,0.17]
[1720400116745,100.0,129.89,129.84,6.5047]
[1720400117063,18.71210511,129.97,129.84,6.5047]
[1720400117064,100.0,129.87,129.84,6.5047]
[1720400117261,100.0,129.85,129.8,6.5047]
[1720400117453,6.5321,129.93,129.8,6.5047]
[1720400117454,100.0,129.83,129.8,6.5047]
[1720400117758,100.0,129.85,129.78,16.346]
[1720400118138,100.0,129.83,129.78,16.346]
[1720400118857,100.0,129.83,129.79,0.17]
[1720400119164,100.0,129.85,129.79,0.17]
[1720400121355,100.0,129.82,129.78,16.346]
[1720400122064,100.0,129.84,129.78,16.346]
[1720400123151,100.0,129.82,129.79,0.17]
[1720400125269,100.0,129.84,129.79,0.17]
[1720400125973,100.0,129.86,129.79,0.17]
[1720400126670,100.0,129.82,129.79,0.17]
[1720400126874,100.0,129.84,129.79,0.17]
[1720400127066,100.0,129.86,129.79,0.17]
[1720400127374,100.0,129.88,129.79,0.17]
[1720400127779,100.0,129.88,129.82,15.3232]
[1720400128081,9.31521697,129.93,129.83,0.17]
[1720400128082,100.0,129.93,129.83,0.17]
[1720400128374,22.24754449,129.92,129.84,29.3977]
[1720400128673,100.0,129.96,129.84,34.7888]
[1720400128976,100.0,129.94,129.85,0.17]
[1720400129177,22.24260416,129.93,129.85,0.17]
[1720400129772,100.0,129.96,129.85,0.17]
[1720400130073,22.24266883,129.95,129.85,0.17]
[1720400130384,100.0,129.94,129.85,0.17]
[1720400130556,100.0,129.96,129.85,0.17]
[1720400130762,22.24216395,129.95,129.85,0.17]
[1720400131452,100.0,129.96,129.85,0.17]
[1720400132670,22.24043701,129.95,129.85,0.17]
[1720400132979,100.0,129.92,129.85,0.17]
[1720400133884,100.0,129.92,129.84,6.2577]
[1720400134177,100.0,129.89,129.84,6.2577]
[1720400134576,4.46416058,129.97,129.84,6.2577]
[1720400134577,100.0,129.91,129.84,6.2577]
[1720400134878,100.0,129.93,129.84,6.2577]
[1720400135079,16.5148,130.0,129.84,29.3977]
[1720400135080,100.0,129.94,129.84,29.3977]
[1720400135272,100.0,129.94,129.85,0.17]
[1720400136378,100.0,129.91,129.85,0.17]
[1720400136881,100.0,129.89,129.85,0.17]
[1720400137064,100.0,129.92,129.84,6.2577]
[1720400137272,100.0,129.93,129.84,6.2577]
[1720400137471,100.0,129.94,129.84,29.3977]
[1720400138323,100.0,129.94,129.86,23.14]
[1720400138454,100.0,129.94,129.87,0.17]
[1720400138658,15.516,130.04,129.87,0.17]
[1720400138659,100.0,129.96,129.87,0.17]
[1720400142081,100.0,130.01,129.89,38.43]
[1720400142287,100.0,130.03,129.9,0.17]
[1720400142476,100.0,130.02,129.93,15.29]
[1720400142671,100.0,130.02,129.94,0.17]
[1720400142873,100.0,130.04,129.94,0.17]
[1720400143678,100.0,130.04,129.95,29.6366]
[1720400143881,100.0,130.04,129.96,0.17]
[1720400145159,100.0,130.06,129.96,0.17]
[1720400145363,100.0,130.06,129.97,38.981]
[1720400145667,100.0,130.06,129.98,0.17]
[1720400146488,100.0,130.02,129.97,15.841]
[1720400146799,100.0,130.0,129.97,15.841]
[1720400147092,100.0,130.0,129.95,6.4966]
[1720400147462,100.0,129.99,129.95,6.4966]
[1720400148294,100.0,129.99,129.96,0.17]
[1720400148679,100.0,129.97,129.95,6.4966]
[1720400148994,100.0,130.0,129.95,6.4966]
[1720400149208,100.0,129.98,129.95,6.4966]
[1720400150108,100.0,130.02,129.95,6.4966]
[1720400150698,100.0,130.02,129.96,0.17]
[1720400150907,6.1241,130.07,129.96,0.17]
[1720400150908,100.0,130.04,129.96,0.17]
[1720400151085,100.0,130.07,129.96,0.17]
[1720400151401,100.0,130.05,129.96,0.17]
[1720400152173,48.5854904,130.13,130.0,23.14]
[1720400152174,100.8554904,130.13,130.0,23.14]
[1720400152375,100.8554904,130.13,129.99,6.4272]
[1720400152376,0.8554904,130.13,130.01,38.5718]
[1720400152688,0.8554904,130.13,130.03,23.14]
[1720400152882,0.8554904,130.13,130.07,23.14]
[1720400153112,0.8554904,130.13,130.08,0.17]
[1720400153269,0.8554904,130.13,130.09,6.1441]
[1720400153473,0.8554904,130.13,130.1,0.17]
[1720400154580,100.0,130.2,130.1,0.17]
[1720400154791,100.0,130.22,130.1,0.17]
[1720400155489,0.8554904,130.26,130.1,0.17]
[1720400155691,100.0,130.19,130.1,0.17]
[1720400156202,100.0,130.18,130.1,0.17]
[1720400156372,100.0,130.14,130.09,6.1441]
[1720400157584,100.0,130.11,130.09,6.1441]
[1720400157983,100.0,130.11,130.06,15.2618]
[1720400158205,15.0,130.2,130.04,6.164]
[1720400158206,100.0,130.13,130.04,6.164]
[1720400158387,100.0,130.12,130.04,6.164]
[1720400158697,100.0,130.11,130.04,6.164]
[1720400159016,100.0,130.08,130.01,15.2197]
[1720400159500,100.0,130.06,130.01,15.2197]
[1720400159810,100.0,130.04,129.99,6.66]
[1720400160396,100.0,130.02,129.96,15.1445]
[1720400160905,100.0,130.04,129.96,15.1445]
[1720400161714,100.0,130.02,129.96,15.1445]
[1720400162082,100.0,130.06,129.96,15.1445]
[1720400162910,100.0,130.06,129.97,0.17]
[1720400163413,100.0,130.11,129.99,23.14]
[1720400163715,100.0,130.11,130.0,0.17]
[1720400163880,100.0,130.07,129.98,6.5335]
[1720400164084,100.0,130.07,129.98,29.6735]
[1720400164281,100.0,130.09,129.98,29.6735]
[1720400164479,100.0,130.07,129.98,29.6735]
[1720400164700,100.0,130.05,129.98,6.5335]
[1720400165011,100.0,130.02,129.96,15.1445]
[1720400165201,100.0,130.01,129.96,15.1445]
[1720400165615,100.0,129.99,129.96,15.1445]
[1720400165919,100.0,129.97,129.91,16.4776]
[1720400166211,100.0,129.95,129.91,16.4776]
[1720400166380,100.0,129.93,129.89,6.6414]
[1720400166579,100.0,129.91,129.86,15.741]
[1720400166886,100.0,129.94,129.86,15.741]
[1720400167493,100.0,129.9,129.86,15.741]
[1720400168012,6.4904,130.0,129.86,15.741]
[1720400168342,100.0,129.92,129.86,15.741]
[1720400168882,100.0,129.97,129.86,15.741]
[1720400169084,100.0,129.97,129.88,5.3892]
[1720400169396,100.0,129.96,129.89,0.17]
[1720400169701,100.0,129.99,129.89,0.17]
[1720400170089,100.0,130.02,129.89,0.17]
[1720400170283,100.0,130.02,129.9,6.2802]
[1720400170490,100.0,130.04,129.92,15.3557]
[1720400170687,100.0,130.04,129.92,38.4957]
[1720400171016,100.0,130.04,129.93,0.17]
[1720400172115,100.0,130.1,129.94,29.6073]
[1720400172323,100.0,130.06,129.95,0.17]
[1720400172485,100.0,130.09,129.95,0.17]
[1720400173106,100.0,130.08,129.95,0.17]
[1720400173615,100.0,130.1,129.95,0.17]
[1720400173822,100.0,130.08,129.95,0.17]
[1720400173991,100.0,130.1,129.95,0.17]
[1720400174192,100.0,130.1,129.95,43.31]
[1720400174817,100.0,130.1,129.97,23.14]
[1720400175002,100.0,130.1,129.98,0.17]
[1720400175321,100.0,130.06,129.95,20.0]
[1720400175496,100.0,130.08,129.94,29.6073]
[1720400175698,100.0,130.1,129.94,29.6073]
[1720400176509,100.0,130.1,129.95,15.5026]
[1720400176706,100.0,130.1,129.96,23.31]
[1720400177604,100.0,130.08,129.96,0.17]
[1720400177797,100.0,130.04,129.95,15.5026]
[1720400178392,100.0,130.06,129.95,15.5026]
[1720400178834,100.0,130.06,129.95,38.6426]
[1720400179114,100.0,130.08,129.95,38.6426]
[1720400179317,100.0,130.04,129.95,38.6426]
[1720400179618,39.94,130.16,129.95,38.6426]
[1720400179619,100.0,130.06,129.95,38.6426]
[1720400179936,100.0,130.06,129.96,0.17]
[1720400180123,54.94,130.16,129.96,0.17]
[1720400180422,100.0,130.1,129.96,0.17]
[1720400181405,100.0,130.08,129.96,0.17]
[1720400181711,15.0,130.13,129.95,15.5026]
[1720400181712,100.0,130.04,129.95,15.5026]
[1720400182816,100.0,130.06,129.95,38.6426]
[1720400183351,100.0,130.09,129.95,38.6426]
[1720400183618,100.0,130.06,129.95,15.5026]
[1720400183802,100.0,130.02,129.95,15.5026]
[1720400184007,100.0,130.01,129.95,15.5026]
[1720400184808,100.0,130.08,129.95,38.6426]
[1720400185015,16.235,130.12,129.95,38.6426]
[1720400185016,100.0,130.06,129.95,38.6426]
[1720400185295,100.0,130.04,129.96,0.17]
[1720400185724,100.0,130.09,129.96,0.17]
[1720400186122,100.0,130.07,129.96,0.17]
[1720400186305,100.0,130.07,129.96,23.31]
[1720400187124,100.0,130.09,129.96,23.31]
[1720400187928,100.0,130.07,129.96,23.31]
[1720400188230,100.0,130.13,129.99,6.4177]
[1720400188439,6.6262,130.2,129.99,6.4177]
[1720400188440,100.0,130.18,130.02,38.5027]
[1720400188726,100.0,130.18,130.04,23.14]
[1720400188904,100.0,130.15,130.05,0.17]
[1720400189102,100.0,130.12,130.05,0.17]
[1720400189408,100.0,130.14,130.05,0.17]
[1720400189907,100.0,130.1,130.05,0.17]
[1720400190112,100.0,130.12,130.05,0.17]
[1720400190311,100.0,130.09,130.05,0.17]
[1720400190516,100.0,130.11,130.05,0.17]
[1720400190821,100.0,130.13,130.05,0.17]
[1720400190995,100.0,130.15,130.05,0.17]
[1720400191204,100.0,130.15,130.06,6.2839]
[1720400191403,100.0,130.15,130.07,0.17]
[1720400191630,100.0,130.19,130.07,0.17]
[1720400191839,15.9459,130.22,130.07,0.17]
[1720400192013,37.20227016,130.21,130.07,0.17]
[1720400192329,22.20227016,130.2,130.07,0.17]
[1720400192521,22.20227016,130.2,130.06,6.2839]
[1720400192522,100.0,130.1,130.06,6.2839]
[1720400192704,100.0,130.12,130.06,6.2839]
[1720400194427,100.0,130.12,130.07,0.17]
[1720400194631,100.0,130.15,130.07,0.17]
[1720400194952,100.0,130.13,130.07,0.17]
[1720400195116,100.0,130.16,130.07,0.17]
[1720400196623,100.0,130.14,130.07,0.17]
[1720400197239,100.0,130.16,130.07,0.17]
[1720400197535,100.0,130.12,130.07,0.17]
[1720400197940,100.0,130.14,130.07,0.17]
[1720400198411,100.0,130.15,130.07,0.17]
[1720400198613,100.0,130.17,130.08,16.4021]
[1720400198836,100.0,130.19,130.09,0.17]
[1720400199441,100.0,130.16,130.09,0.17]
[1720400199940,100.0,130.14,130.08,16.4021]
[1720400200938,100.0,130.16,130.08,16.4021]
[1720400201239,100.0,130.17,130.09,0.17]
[1720400201633,100.0,130.2,130.09,0.17]
[1720400201836,6.1291,130.24,130.1,6.4808]
[1720400201837,100.0,130.22,130.1,6.4808]
[1720400202021,100.0,130.2,130.11,0.17]
[1720400202343,100.0,130.21,130.12,16.2131]
[1720400202843,100.0,130.19,130.13,0.17]
[1720400203223,100.0,130.21,130.13,0.17]
[1720400205747,100.0,130.19,130.13,0.17]
[1720400205927,100.0,130.21,130.13,0.17]
[1720400206532,100.0,130.17,130.12,16.2131]
[1720400208249,100.0,130.21,130.12,16.2131]
[1720400208448,100.0,130.21,130.13,0.17]
[1720400210051,100.0,130.19,130.13,0.17]
[1720400212246,100.0,130.21,130.13,0.17]
[1720400213754,100.0,130.17,130.12,16.2131]
[1720400213931,100.0,130.17,130.1,6.4808]
[1720400214324,100.0,130.2,130.1,6.4808]
[1720400215443,100.0,130.14,130.1,6.4808]
[1720400216043,100.0,130.16,130.1,6.4808]
[1720400216456,100.0,130.19,130.1,6.4808]
[1720400216747,100.0,130.15,130.1,6.4808]
[1720400217332,100.0,130.15,130.11,0.17]
[1720400218752,100.0,130.18,130.11,0.17]
[1720400219838,100.0,130.16,130.11,0.17]
[1720400220242,60.9121904,130.26,130.11,0.17]
[1720400220243,100.0,130.19,130.11,0.17]
[1720400220445,100.0,130.16,130.11,0.17]
[1720400220644,60.9121904,130.26,130.11,0.17]
[1720400220645,100.0,130.18,130.11,0.17]
[1720400221348,100.0,130.16,130.11,0.17]
[1720400221646,100.0,130.18,130.11,0.17]
[1720400221851,45.9121904,130.26,130.1,6.4808]
[1720400221852,100.0,130.15,130.1,6.4808]
[1720400222041,100.0,130.16,130.1,6.4808]
[1720400222242,100.0,130.14,130.1,6.4808]
[1720400222960,100.0,130.12,130.08,15.0865]
[1720400223650,100.0,130.09,130.07,6.6305]
[1720400223953,100.0,130.07,130.04,21.6456]
[1720400224655,100.0,130.07,130.04,6.0472]
[1720400224864,100.0,130.09,130.04,6.0472]
[1720400225040,100.0,130.11,130.04,6.0472]
[1720400225569,100.0,130.16,130.04,6.0472]
[1720400225767,100.0,130.14,130.04,6.0472]
[1720400226062,100.0,130.07,130.04,6.0472]
[1720400226239,100.0,130.07,130.0,21.1609]
[1720400226446,100.0,130.07,130.01,0.17]
[1720400226647,100.0,130.05,130.01,0.17]
[1720400226853,100.0,130.08,130.01,0.17]
[1720400227755,100.0,130.11,130.01,0.17]
[1720400228153,100.0,130.08,130.01,0.17]
[1720400229671,100.0,130.1,130.01,0.17]
[1720400230056,100.0,130.05,130.0,21.1609]
[1720400230458,100.0,130.05,129.96,16.1721]
[1720400230660,6.1029,130.11,129.96,16.1721]
[1720400230661,100.0,130.01,129.96,16.1721]
[1720400231055,100.0,130.06,129.96,16.1721]
[1720400231257,100.0,130.06,129.96,39.3021]
[1720400231853,100.0,130.06,129.96,16.1721]
[1720400232359,100.0,130.0,129.96,16.1721]
[1720400232960,100.0,129.98,129.96,16.1721]
[1720400233150,100.0,129.98,129.91,21.4413]
[1720400233354,100.0,129.96,129.91,21.4413]
[1720400234145,15.0,130.04,129.91,21.4413]
[1720400234146,100.0,129.94,129.91,21.4413]
[1720400234361,100.0,129.94,129.82,21.802]
[1720400235172,100.0,129.94,129.82,44.932]
[1720400236061,100.0,129.94,129.82,21.802]
[1720400236385,6.1599,130.02,129.82,21.802]
[1720400236386,100.0,129.91,129.82,21.802]
[1720400236751,100.0,129.93,129.82,21.802]
[1720400237192,100.0,129.96,129.84,5.3912]
[1720400237362,100.0,129.96,129.83,23.13]
[1720400237564,100.0,129.96,129.84,0.17]
[1720400237856,100.0,129.94,129.84,5.5612]
[1720400238056,100.0,129.96,129.84,0.17]
[1720400238266,100.0,129.96,129.84,23.13]
[1720400238471,100.0,129.94,129.85,0.17]
[1720400238778,100.0,129.92,129.82,21.802]
[1720400239357,100.0,129.9,129.82,21.802]
[1720400239853,6.1599,130.02,129.83,6.3759]
[1720400239854,100.0,129.97,129.83,6.3759]
[1720400240053,100.0,129.97,129.88,6.6438]
[1720400240283,100.0,129.96,129.89,15.9347]
[1720400240655,100.0,129.98,129.9,0.17]
[1720400241875,100.0,129.96,129.9,0.17]
[1720400242464,100.0,129.94,129.9,0.17]
[1720400242661,100.0,129.94,129.89,15.9347]
[1720400242895,100.0,129.92,129.89,15.9347]
[1720400243084,100.0,129.94,129.89,15.9347]
[1720400244179,100.0,129.97,129.89,15.9347]
[1720400244372,100.0,129.95,129.9,0.17]
[1720400245078,100.0,129.97,129.9,0.17]
[1720400245259,100.0,130.04,129.94,5.3867]
[1720400245463,100.0,130.04,129.95,0.17]
[1720400245677,100.0,130.0,129.95,0.17]
[1720400246187,100.0,129.98,129.95,0.17]
[1720400246482,100.0,130.0,129.91,6.6599]
[1720400246667,100.0,130.0,129.92,0.17]
[1720400247191,100.0,130.02,129.92,0.17]
[1720400247889,100.0,130.0,129.92,0.17]
[1720400248080,100.0,129.98,129.92,0.17]
[1720400248400,100.0,130.0,129.92,0.17]
[1720400250263,100.0,129.98,129.92,0.17]
[1720400251182,100.0,129.94,129.91,6.6599]
[1720400251390,100.0,129.96,129.91,6.6599]
[1720400251680,100.0,129.94,129.91,6.6599]
[1720400254184,100.0,129.97,129.91,6.6599]
[1720400254678,100.0,129.97,129.92,0.17]
[1720400255190,100.0,129.93,129.91,6.6599]
[1720400255559,36.7398,130.02,129.89,15.9347]
[1720400255560,100.0,129.91,129.89,15.9347]
[1720400256386,100.0,129.89,129.87,6.2534]
[1720400256967,100.0,129.89,129.84,16.5702]
[1720400257163,100.0,129.87,129.84,16.5702]
[1720400257976,100.0,129.89,129.84,16.5702]
[1720400258892,100.0,129.89,129.85,0.17]
[1720400259183,100.0,129.91,129.85,0.17]
[1720400259495,100.0,129.88,129.85,0.17]
[1720400259784,100.0,129.88,129.84,16.5702]
[1720400259986,100.0,129.86,129.84,16.5702]
[1720400261079,100.0,129.89,129.84,16.5702]
[1720400261265,100.0,129.87,129.84,16.5702]
[1720400262208,100.0,129.92,129.84,16.5702]
[1720400262373,100.0,129.98,129.85,0.17]
[1720400262693,100.0,129.94,129.85,0.17]
[1720400262901,100.0,129.94,129.85,20.17]
[1720400264169,100.0,129.92,129.85,0.17]
[1720400264400,100.0,129.94,129.85,0.17]
[1720400264576,100.0,129.94,129.84,16.5702]
[1720400264776,100.0,129.92,129.84,16.5702]
[1720400265494,100.0,129.92,129.84,21.9614]
[1720400265671,100.0,129.92,129.84,39.7002]
[1720400265873,100.0,129.92,129.85,0.17]
[1720400266274,100.0,129.94,129.85,0.17]
[1720400266798,100.0,129.88,129.84,16.5702]
[1720400267986,100.0,129.86,129.84,16.5702]
[1720400268193,100.0,129.86,129.8,0.8554904]
[1720400268194,100.0,129.86,129.8,22.9748904]
[1720400269684,100.0,129.84,129.8,22.9748904]
[1720400270493,100.0,129.84,129.8,6.9990904]
[1720400270988,100.0,129.82,129.8,0.8554904]
[1720400273010,2.6444,129.86,129.8,0.8554904]
[1720400273199,100.0,129.82,129.81,0.2]
[1720400275910,122.26549963,129.82,129.81,0.2]
[1720400276415,142.26549963,129.82,129.81,0.2]
[1720400276714,142.26549963,129.82,129.8,0.8554904]
[1720400276889,20.0,129.81,129.8,0.8554904]
[1720400277289,42.26582343,129.81,129.8,0.8554904]
[1720400277494,20.0,129.81,129.8,0.8554904]
[1720400277715,20.0,129.81,129.71,0.2]
[1720400277716,100.0,129.74,129.71,0.2]
[1720400277884,100.0,129.72,129.71,0.2]
[1720400279516,120.0,129.72,129.71,0.2]
[1720400280409,120.17,129.72,129.71,0.2]
[1720400280927,100.0,129.68,129.67,0.8554904]
[1720400283419,100.0,129.73,129.67,0.8554904]
[1720400283590,100.0,129.71,129.67,0.8554904]
[1720400283794,100.0,129.69,129.67,0.8554904]
[1720400287393,100.0,129.68,129.67,0.8554904]
[1720400290729,120.17,129.68,129.67,0.8554904]
[1720400290918,120.0,129.68,129.67,0.8554904]
[1720400292297,120.17,129.68,129.67,0.8554904]
[1720400292495,120.17,129.68,129.64,0.15]
[1720400292496,100.0,129.65,129.64,0.15]
[1720400292717,100.0,129.65,129.61,0.2]
[1720400292718,100.0,129.62,129.61,0.2]
[1720400293333,100.17,129.62,129.61,0.2]
[1720400293698,120.17,129.62,129.61,0.2]
[1720400293999,135.17,129.62,129.61,0.2]
[1720400294203,100.0,129.6,129.59,0.04572441]
[1720400294405,100.17,129.6,129.59,0.04572441]
[1720400294726,100.0,129.6,129.59,0.04572441]
[1720400296092,100.17,129.6,129.59,0.04572441]
[1720400297516,120.17,129.6,129.59,0.04572441]
[1720400298199,100.0,129.6,129.59,0.04572441]
[1720400298716,100.17,129.6,129.59,0.04572441]
[1720400298918,100.0,129.6,129.59,0.04572441]
[1720400299423,100.0,129.55,129.54,0.92882373]
[1720400304411,148.87764026,129.55,129.54,0.92882373]
[1720400304630,149.04764026,129.55,129.54,0.33222373]
[1720400305931,133.87764026,129.55,129.54,0.33222373]
[1720400306222,106.97217974,129.55,129.54,0.33222373]
[1720400306731,120.43221775,129.55,129.54,0.33222373]
[1720400307128,125.34834063,129.55,129.54,0.33222373]
[1720400307814,125.51834063,129.55,129.54,0.33222373]
[1720400308137,145.51834063,129.55,129.54,0.33222373]
[1720400308718,160.51834063,129.55,129.54,0.33222373]
[1720400309139,145.51834063,129.55,129.54,0.33222373]
[1720400309438,125.34834063,129.55,129.54,0.33222373]
[1720400309916,117.35799121,129.55,129.54,0.33222373]
[1720400310843,137.35799121,129.55,129.54,0.33222373]
[1720400311731,137.52799121,129.55,129.54,0.33222373]
[1720400312733,137.35799121,129.55,129.54,0.33222373]
[1720400313461,137.52799121,129.55,129.54,0.33222373]
[1720400314236,100.0,129.52,129.41,1.0554904]
[1720400314459,100.0,129.42,129.41,1.0554904]
[1720400316346,129.83461201,129.42,129.41,1.0554904]
[1720400317121,140.52119037,129.42,129.41,1.0554904]
[1720400317628,140.69119037,129.42,129.41,1.0554904]
[1720400318022,100.0,129.36,129.35,0.15]
[1720400318222,109.83461201,129.36,129.35,0.15]
[1720400318837,129.83461201,129.36,129.35,0.15]
[1720400319314,140.52119037,129.36,129.35,0.15]
[1720400319535,140.52119037,129.36,129.33,0.03333333]
[1720400319536,100.0,129.34,129.33,0.03333333]
[1720400319739,129.83461201,129.34,129.33,0.03333333]
[1720400319922,138.55972635,129.34,129.33,0.03333333]
[1720400320126,138.72972635,129.34,129.33,0.03333333]
[1720400320323,100.0,129.32,129.31,0.8445851]
[1720400320544,138.72972635,129.32,129.31,0.8445851]
[1720400321214,138.55972635,129.32,129.31,0.8445851]
[1720400322532,138.72972635,129.32,129.31,0.8445851]
[1720400322833,109.83461201,129.32,129.31,0.8445851]
[1720400324441,129.83461201,129.32,129.31,0.8445851]
[1720400324619,159.83461201,129.32,129.31,0.8445851]
[1720400325528,139.83461201,129.32,129.31,0.8445851]
[1720400325840,159.83461201,129.32,129.31,0.8445851]
[1720400326633,129.83461201,129.32,129.31,0.8445851]
[1720400327423,134.36716918,129.32,129.31,0.8445851]
[1720400327630,140.69119037,129.32,129.31,0.8445851]
[1720400327829,100.0,129.25,129.22,21.6264]
[1720400328127,14.19716918,129.31,129.16,0.9185009]
[1720400328128,100.0,129.22,129.16,0.9185009]
[1720400328326,100.0,129.23,129.16,0.9185009]
[1720400328721,100.0,129.25,129.22,22.7886]
[1720400328922,100.0,129.27,129.22,22.7886]
[1720400329322,100.0,129.29,129.22,22.7886]
[1720400329761,100.0,129.27,129.22,22.7886]
[1720400330055,100.0,129.29,129.22,22.7886]
[1720400330644,100.0,129.27,129.22,22.7886]
[1720400331025,100.0,129.33,129.22,22.7886]
[1720400331345,100.0,129.31,129.23,0.17]
[1720400331750,100.0,129.34,129.23,0.17]
[1720400332440,100.0,129.34,129.24,6.2328]
[1720400332757,100.0,129.34,129.26,15.33]
[1720400332922,100.0,129.36,129.27,0.17]
[1720400333119,15.9584,129.49,129.29,15.33]
[1720400333120,100.0,129.39,129.29,15.33]
[1720400333324,8.85166756,129.44,129.3,0.17]
[1720400333543,100.0,129.4,129.3,0.17]
[1720400333756,100.0,129.38,129.31,6.2328]
[1720400334054,100.0,129.4,129.32,0.17]
[1720400334253,100.0,129.42,129.31,6.2328]
[1720400334425,100.0,129.35,129.31,6.2328]
[1720400334753,100.0,129.34,129.31,6.2328]
[1720400334941,100.0,129.37,129.31,6.2328]
[1720400335548,8.85166756,129.42,129.31,6.2328]
[1720400335758,108.85166756,129.42,129.32,0.17]
[1720400336054,100.0,129.37,129.32,0.17]